Cogmind - Beta 10.2 @@@ ROGUE MODE // 2021.12.11 @ 16:34:54 Player: Zyll Result: Destroyed by Z-Imprinter via exploding Z-Power Performance ------------- Evolutions (1) 500 Regions Visited (5) 1000 Robots Destroyed (12) 60 Value Destroyed (264) 264 Prototype IDs (3) 60 Alien Tech Used (0) 0 Bonus (800) 800 TOTAL SCORE: 2684 Bonus ------- Pacifist 200 Met Imprinter 300 Was Imprinted 300 Cogmind --------- Core Integrity 0/400 Matter 259/300 Energy 68/100 System Corruption 0% Temperature Cool (0) Movement Hovering (120) Ox1 Location -7/Deep Caves Parts ------- > --- POWER (1) -------- (None) > --- PROPULSION (4) --- Airjet > --- UTILITY (2) ------ Small Storage Unit Hacking Drone Bay (0/1) > --- WEAPON (2) ------- Beam Rifle CR-A16's Pointy Stick > --- INVENTORY (6) ---- Insulated Plating Peak State ------------ > --- POWER ------------ Improved Deuterium Engine > --- PROPULSION ------- Airjet Airjet Airjet Airjet > --- UTILITY ---------- Improved Heat Sink Small Storage Unit > --- WEAPON ----------- Heavy Assault Rifle CR-A16's Pointy Stick > --- INVENTORY -------- Insulated Plating Insulated Plating Hacking Drone Bay Beam Rifle Mini Grenade Launcher Enhanced Flamer [Rating: 28] Favorites ----------- Power Ion Engine Engine Ion Engine Propulsion Airjet Leg Carbon-fiber Leg Hover Unit Airjet Utility Small Storage Unit Device Improved Heat Sink Storage Small Storage Unit Protection Insulated Plating Weapon Heavy Assault Rifle Energy Gun Spread Laser Ballistic Gun Heavy Assault Rifle Launcher Mini Grenade Launcher Special Weapon Enhanced Flamer Piercing Weapon CR-A16's Pointy Stick Build | -11 -10 -9 -9 -7 -7 ------- Run | Scr Mat Mat Min Zio Dee Slots Evolved 2 | . . 2 . . . Power . | . . . . . . Propulsion 2 | . . 2 . . . Utility . | . . . . . . Weapon . | . . . . . . Parts Attached 46 | 6 . 29 . 2 9 Power 4 | 1 . 2 . 1 . Engine 4 | 1 . 2 . 1 . Core . | . . . . . . Reactor . | . . . . . . Propulsion 17 | 2 . 12 . . 3 Treads . | . . . . . . Leg 10 | 2 . 8 . . . Wheel . | . . . . . . Hover 7 | . . 4 . . 3 Flight . | . . . . . . Utility 5 | 1 . 2 . . 2 Device 3 | . . 2 . . 1 Storage 1 | 1 . . . . . Processor . | . . . . . . Hackware . | . . . . . . Protection 1 | . . . . . 1 Artifact . | . . . . . . Weapon 20 | 2 . 13 . 1 4 Energy Gun 10 | 1 . 8 . . 1 Energy Cannon . | . . . . . . Ballistic Gun 6 | 1 . 5 . . . Ballistic Cannon . | . . . . . . Launcher 1 | . . . . . 1 Special Weapon 1 | . . . . . 1 Impact Weapon . | . . . . . . Slashing Weapon . | . . . . . . Piercing Weapon 2 | . . . . 1 1 Special Melee Weapon . | . . . . . . Unidentified Prototypes 1 | . . . . . 1 Parts Lost 21 | . . 9 . . 12 Power 3 | . . 2 . . 1 Propulsion 8 | . . 2 . . 6 Utility 2 | . . . . . 2 Weapon 8 | . . 5 . . 3 Highest Loss Streak 12 | . . 4 . . 12 Average Slot Usage (%) 97 | . 85 95 100 100 92 Engine 11 | . 14 11 11 11 10 Leg 14 | . 28 39 . . . Hover 27 | . . 1 44 44 40 Device 10 | . . 9 11 11 9 Storage 11 | . 14 11 11 11 11 Energy Gun 5 | . 14 13 11 . . Ballistic Gun 10 | . 14 8 11 11 10 Piercing Weapon 5 | . . . . 10 8 Naked Turns . | . . . . . . Heaviest Build 22 | 12 12 16 16 21 22 Greatest Support 60 | 20 20 60 36 27 36 Greatest Overweight (x) 5 | 2 . 5 . . 1 Average Overweight (x) . | . . . . . . Largest Inventory Capacity 6 | 6 6 6 6 6 6 Average Capacity 5 | 5 6 6 6 6 6 Most Carried 6 | 2 2 6 6 6 6 Average Carried 5 | 1 2 4 5 5 5 Final Capacity 6 | 6 6 6 6 6 6 Final Carried 6 | 2 2 4 6 6 1 Class Distribution -------------------- 94% | Mutant 5% | Scavenger-Mutant Dominant Class ---------------- Mutant | -10/Materials Mutant | -9/Materials Mutant | -9/Mines Mutant | -7/Zion Mutant | -7/Deep Caves Resources | -11 -10 -9 -9 -7 -7 ----------- Run | Scr Mat Mat Min Zio Dee Matter Collected 641 | 99 . 452 60 20 10 Remotely . | . . . . . . Salvage Created 244 | . . 244 . . . Parts 19 | . . 19 . . . Haulers Intercepted . | . . . . . . Recyclers Shooed . | . . . . . . Parts Field Recycled . | . . . . . . Retrieved Matter . | . . . . . . Parts Self-Destructed . | . . . . . . Prevented . | . . . . . . Kills | -11 -10 -9 -9 -7 -7 ------- Run | Scr Mat Mat Min Zio Dee Combat Hostiles Destroyed 12 | . . 12 . . . Guns 12 | . . 12 . . . Classes Destroyed 3 | . . 3 . . . Swarmer 7 | . . 7 . . . Grunt 4 | . . 4 . . . Sentry 1 | . . 1 . . . Best Kill Streak 5 | . . 5 . . . Combat Bots Only 5 | . . 5 . . . Max Kills in Single Turn 1 | . . 1 . . . Gunslinging . | . . . . . . Exploded . | . . . . . . Melee . | . . . . . . Uniques/NPCs Destroyed . | . . . . . . Combat | -11 -10 -9 -9 -7 -7 -------- Run | Scr Mat Mat Min Zio Dee Damage Taken 2370 | . 41 1122 15 . 1192 Core 463 | . . 161 . . 302 Absorbed by Shields . | . . . . . . Core Remaining (%) 100 | 100 100 . . . . Volleys Fired 41 | . . 38 . . 3 Largest 2 | . . 2 . . 2 Hottest 130 | . . 130 . . 53 Shots Fired 79 | . . 75 . . 4 Gun 78 | . . 75 . . 3 Cannon . | . . . . . . Launcher 1 | . . . . . 1 Special . | . . . . . . Kinetic 28 | . . 25 . . 3 Thermal 45 | . . 45 . . . Explosive 1 | . . . . . 1 Electromagnetic 5 | . . 5 . . . Robot Hit Streak 9 | . . 9 . . 6 Robot Miss Streak 7 | . . 7 . . 1 Penetration Max . | . . . . . . Secondary Targets 5 | . . 5 . . . Max Gunslinging Chain 1 | . . 1 . . . Shots Hit Robots 68 | . . 65 . . 3 Core Hits 44 | . . 39 . . 5 Critical Hits . | . . . . . . Critical Kills . | . . . . . . Critical Parts Destroyed . | . . . . . . Melee Attacks . | . . . . . . Impact . | . . . . . . Slashing . | . . . . . . Piercing . | . . . . . . Sneak Attacks . | . . . . . . Combat Hostiles . | . . . . . . Follow-up Attacks . | . . . . . . Damage Inflicted 776 | . . 612 . . 164 Guns 649 | . . 602 . . 47 Cannons . | . . . . . . Explosions 117 | . . . . . 117 Melee . | . . . . . . Ramming 10 | . . 10 . . . Kinetic 268 | . . 221 . . 47 Thermal 347 | . . 347 . . . Explosive 117 | . . . . . 117 Electromagnetic 34 | . . 34 . . . Impact . | . . . . . . Slashing . | . . . . . . Piercing . | . . . . . . Highest Corruption . | . . . . . . Average Corruption . | . . . . . . Corruption Purged . | . . . . . . Overload Shots . | . . . . . . Overflow Damage . | . . . . . . Projectiles . | . . . . . . Explosions . | . . . . . . Melee . | . . . . . . Knockbacks . | . . . . . . Impact . | . . . . . . Kinetic . | . . . . . . Secondary . | . . . . . . Self-Inflicted Damage . | . . . . . . Shots . | . . . . . . Rammed . | . . . . . . Targets Rammed 1 | . . 1 . . . Kicked 1 | . . 1 . . . Crushed . | . . . . . . Highest Temperature 326 | . . 326 . . 93 Average Temperature 96 | . . 120 . . 46 Received Heat Transfer 597 | . 24 240 9 . 324 Siege Activations . | . . . . . . Robots Corrupted . | . . . . . . Combat Hostiles . | . . . . . . Parts Fried . | . . . . . . Impact Corruptions . | . . . . . . Robots Melted . | . . . . . . Combat Hostiles . | . . . . . . Parts Melted . | . . . . . . Heat Transferred 450 | . . 450 . . . Parts Sabotaged . | . . . . . . Parts Stolen . | . . . . . . Parts Stripped . | . . . . . . Power Chain Reactions . | . . . . . . Missiles Intercepted . | . . . . . . Alert | -11 -10 -9 -9 -7 -7 ------- Run | Scr Mat Mat Min Zio Dee Peak Influence 257 | . 45 257 103 . . Initial 58 | . . 18 58 . . Average 115 | . 28 140 63 . . Maximum Alert Level 1 | . . 1 . . . Low Security (%) 88 | 100 100 84 100 . . Level 1 11 | . . 15 . . . Level 2 . | . . . . . . Level 3 . | . . . . . . Level 4 . | . . . . . . Level 5 . | . . . . . . High Security . | . . . . . . Max Security . | . . . . . . Squads Dispatched 4 | . 1 3 . . . Investigation 2 | . . 2 . . . Extermination . | . . . . . . Reinforcement 2 | . 1 1 . . . Assault . | . . . . . . Garrison . | . . . . . . Intercept . | . . . . . . Construction Impeded . | . . . . . . Haulers Reinforced . | . . . . . . Stealth | -11 -10 -9 -9 -7 -7 --------- Run | Scr Mat Mat Min Zio Dee Distress Signals 2 | . . 2 . . . Communications Jammed . | . . . . . . Distress Signals . | . . . . . . Times Spotted 43 | . 5 25 5 . 8 Peak Tracking Total 7 | . 4 6 4 . 7 Tactical Retreats 4 | . . 3 1 . . Traps | -11 -10 -9 -9 -7 -7 ------- Run | Scr Mat Mat Min Zio Dee Traps Triggered 1 | . . 1 . . . Indirectly . | . . . . . . Trap Hack Attempts . | . . . . . . Triggered . | . . . . . . Disarmed . | . . . . . . Reprogrammed . | . . . . . . Reused . | . . . . . . Traps Extracted . | . . . . . . Installed . | . . . . . . Triggered . | . . . . . . Machines | -11 -10 -9 -9 -7 -7 ---------- Run | Scr Mat Mat Min Zio Dee Machines Disabled 1 | . . . . . 1 Max in Single Turn . | . . . . . . Machines Sabotaged . | . . . . . . Garrisons Compromised . | . . . . . . Overloaded Fab Kills . | . . . . . . Fab Network Shutdowns . | . . . . . . Hacking | -11 -10 -9 -9 -7 -7 --------- Run | Scr Mat Mat Min Zio Dee Machines Accessed 7 | . . 6 . 1 . Terminals 5 | . . 5 . . . Fabricators . | . . . . . . Repair Stations . | . . . . . . Recycling Units 1 | . . 1 . . . Scanalyzers . | . . . . . . Garrison Access . | . . . . . . Total Hacks 19 | . . 13 . 6 . Successful 15 | . . 9 . 6 . Failed 4 | . . 4 . . . Catastrophic . | . . . . . . Database Lockouts . | . . . . . . Manual 13 | . . . . 13 . Terminals 12 | . . 12 . . . Fabricators . | . . . . . . Repair Stations . | . . . . . . Recycling Units 1 | . . 1 . . . Scanalyzers . | . . . . . . Garrison Access . | . . . . . . Terminal Hacks 14 | . . 8 . 6 . Record 3 | . . 3 . . . Part Schematic 6 | . . . . 6 . Prototype ID Bank 1 | . . 1 . . . Emergency Access Points 1 | . . 1 . . . Alert Level 1 | . . 1 . . . Zone Layout 2 | . . 2 . . . Fabricator Hacks . | . . . . . . Repair Station Hacks . | . . . . . . Recycling Unit Hacks 1 | . . 1 . . . Report Inventory 1 | . . 1 . . . Scanalyzer . | . . . . . . Garrison Access Hacks . | . . . . . . Unauthorized Hacks . | . . . . . . Terminals . | . . . . . . Fabricators . | . . . . . . Repair Stations . | . . . . . . Recycling Units . | . . . . . . Scanalyzers . | . . . . . . Garrison Access . | . . . . . . Data Cores Recovered . | . . . . . . Used . | . . . . . . Hacking Detections 4 | . . 4 . . . Full Trace Events 1 | . . 1 . . . Feedback Events . | . . . . . . Feedback Blocked . | . . . . . . Robot Schematics Acquired . | . . . . . . Robots Built . | . . . . . . Matter . | . . . . . . Time . | . . . . . . Total Robot Build Rating . | . . . . . . Part Schematics Acquired 6 | . . . . 6 . Parts Built . | . . . . . . Matter . | . . . . . . Time . | . . . . . . Total Part Build Rating . | . . . . . . Parts Repaired . | . . . . . . Time . | . . . . . . Parts Recycled . | . . . . . . Recycled Matter . | . . . . . . Retrieved Matter . | . . . . . . Retrieved Components . | . . . . . . Parts Scanalyzed . | . . . . . . Part Schematics Acquired . | . . . . . . Parts Damaged . | . . . . . . Bothacking | -11 -10 -9 -9 -7 -7 ------------ Run | Scr Mat Mat Min Zio Dee Used RIF Installer . | . . . . . . Robots Hacked . | . . . . . . Non-combat . | . . . . . . Combat . | . . . . . . Robot Hacks Applied . | . . . . . . Relay Couplers Released . | . . . . . . Robots Rewired . | . . . . . . Allies Hacked . | . . . . . . Hacks Repelled . | . . . . . . Allies | -11 -10 -9 -9 -7 -7 -------- Run | Scr Mat Mat Min Zio Dee Total Allies 10 | . . . . 9 1 Largest Group 9 | . . . . 9 5 Highest-Rated Group 277 | . . . . 277 216 Highest-Rated Ally 118 | . . . . 38 118 Total Orders . | . . . . . . Ally Attacks 28 | . . . . . 28 Total Damage 937 | . . . . . 937 Kills 4 | . . . . . 4 Allies Corrupted . | . . . . . . Allies Melted . | . . . . . . Intel | -11 -10 -9 -9 -7 -7 ------- Run | Scr Mat Mat Min Zio Dee Robot Analysis Total . | . . . . . . Derelict Logs Recovered 2 | . . . 1 1 . Drone Launches 1 | . . . . . 1 Drone Recoveries . | . . . . . . Exploration | -11 -10 -9 -9 -7 -7 ------------- Run | Scr Mat Mat Min Zio Dee Turns Passed 1951 | 53 58 663 93 915 169 Spaces Moved 2693 | 35 49 424 181 1696 308 Core 11 | 8 . 3 . . . Treads . | . . . . . . Legs 466 | 27 49 390 . . . Wheels . | . . . . . . Hover 2216 | . . 31 181 1696 308 Flight . | . . . . . . Fastest Speed 48 | 50 120 48 48 52 48 Average Speed 64 | 116 120 116 50 52 48 Slowest Speed 300 | 150 120 300 56 56 120 Overloaded Moves . | . . . . . . Propulsion Burnouts . | . . . . . . Robots Hopped . | . . . . . . Cave-ins Triggered . | . . . . . . Exploration Rate (%) 34 | 3 18 27 25 92 39 Regions Visited 5 Branch Regions 3 Pre-discovered Areas 2 | . . . 1 1 . Known Exits Taken . | . . . . . . Unknown Exits Taken 5 | 1 1 1 1 1 . Scrap Searched 5 | . . . 2 3 . Spaces Dug . | . . . . . . Terrain Destroyed 3 | . . . . . 3 Melee . | . . . . . . Projectile . | . . . . . . AOE 3 | . . . . . 3 Terrain Rammed . | . . . . . . Walls Destroyed . | . . . . . . Machines Disabled . | . . . . . . Actions | -11 -10 -9 -9 -7 -7 --------- Run | Scr Mat Mat Min Zio Dee Total 2833 | 44 48 519 182 1720 320 Wait 18 | 2 . 3 . 13 . Move 2688 | 34 48 423 180 1695 308 Hop . | . . . . . . Pick Up 19 | 2 . 11 2 4 . Fast Attach 17 | 6 . 8 . . 3 Attach 16 | . . 10 . 1 5 Detach 2 | . . 1 . 1 . Swap 13 | . . 11 . 1 1 Drop 18 | . . 13 . 5 . Fire 41 | . . 38 . . 3 Melee . | . . . . . . Ram . | . . . . . . Kick 1 | . . 1 . . . Crush . | . . . . . . Escape Stasis . | . . . . . . Rewire . | . . . . . . Trap . | . . . . . . Miscellaneous . | . . . . . . Route ------- -11/Scrapyard -10/Materials -9/Materials -9/Mines (discovered 2 exits: [*Mat] / *Zio) -7/Zion (discovered 2 exits: [*Dee] / [*Pro]) -7/Deep Caves History --------- Turn | Location | Event 20 | -11/Scrapyard | Discovered new exit (range 15) 54 | -11/Scrapyard | Entered Materials 94 | -10/Materials | Discovered new exit (range 15) 112 | -10/Materials | Entered another Materials area 112 | -9/Materials | Evolved 2 slots: Propulsion x2 327 | -9/Materials | Build established: Mutant 600 | -9/Materials | Lost 3 parts (1p1n1w) 670 | -9/Materials | Lost 4 parts (1p1n2w) 692 | -9/Materials | Discovered new exit (range 6) 775 | -9/Materials | Entered Mines 784 | -9/Mines | Learned location of Zion (-7) 789 | -9/Mines | Discovered new exit (range 14) 791 | -9/Mines | A Derelict revealed a hidden shortcut to a safe place 843 | -9/Mines | Assembled infested the area 868 | -9/Mines | Entered Zion 875 | -7/Zion | Learned Factory stockpile data 914 | -7/Zion | Found CR-A16's Pointy Stick 938 | -7/Zion | Discovered new exit (range 12) 1073 | -7/Zion | Given the Hacking Drone Bay 1074 | -7/Zion | Found Prototype Device 1217 | -7/Zion | Acquired unknown access codes intercepted by a Zionite 1298 | -7/Zion | Gained Derelict followers 1465 | -7/Zion | Learned location of Warlord (-5) 1504 | -7/Zion | Imprinted 1506 | -7/Zion | Declared Zion's savior 1736 | -7/Zion | Opened final containment barrier to the Deep Caves 1745 | -7/Zion | Discovered new exit (range 3) 1745 | -7/Zion | Saw the warning signs outside the Deep Caves entrance 1783 | -7/Zion | Entered Deep Caves 1783 | -7/Deep Caves | Accompanied by 4 allies 1784 | -7/Deep Caves | Met 5H-AD0 1877 | -7/Deep Caves | Z-Facility disabled 1939 | -7/Deep Caves | Attacked by Z-Imprinter 1944 | -7/Deep Caves | Core integrity fell below 50% 1946 | -7/Deep Caves | Identified Hacking Drone Bay 1952 | -7/Deep Caves | Core integrity fell below 20% 1952 | -7/Deep Caves | Destroyed by Z-Imprinter via exploding Z-Power Last Messages --------------- 01924_ HV Slug penetrates Z-Facility. 01934_ Acquired Hover Unit. 01936_ Acquired 10 matter. 01939_ Hover Unit destroyed. Z-Imprinter: GET AWAY FROM HERE! I've worked too hard for our future just to have you ruin everything! 01940_ Acquired Hover Unit. 01942_ Airjet destroyed. 01943_ Acquired Hover Unit. 01944_ Destroyed Prototype Protection. 01945_ Hover Unit destroyed. 01945_ Insulated Plating destroyed. 01946_ Identified Hacking Drone Bay. 01946_ Imp. Deuterium Engine destroyed. 01946_ Airjet destroyed. 01948_ Hacking Drone released from Hacking Drone Bay. 01948_ Hover Unit destroyed. 01948_ Hvy. Assault Rifle destroyed. 01948_ Enh. Flamer destroyed. 01952_ Z-Power explodes. Map ----- +----------------------------------------------------+ | ??????????#????#### ##???????????????? | | ??????????# ??## #????###????????? | | ?????#????# ### ###### ##?????### | | ?????# ?## # ## # #???### | | ? ## =# ##### | | ? %! | | !!! = | | % | | | | """"" """"" | | """"""""""""" | | ? """"""""""""" | | ? """""""""""""" * | | ?? """"""""" != | | ?? """""""""""""" I ! | | ?? ????"""""""""" | | ??? ???""""""""""" z | | ??? ??""""""""""""z | | ???? ???""""""" " zz | | ???? ????"""""" =%/z* z | | ?????? ? ???"""""""" | | ???????? ???????"""""" | | ????????????????"""""""" | | ?????????????????"""""""" n =! | | ?????????????????"""""""" %/ | | ?????????????????""""" @ = | | ?????????????????""""" | | ??????????????????"""" | | ??????????????????"""" | | ??????????????????"""" | | ??????????????????"""" | | ??????????????????"""" | | ???????????????????""" | | ???????????????????""" | | ????????????????????"""""""""o | | ????????????????????""""""" | | ?????????????????????? | | ??????????????????????????? | | ?????????????????????????????? | | ?????????????????????????????? | | ????????????????????????????? | | ?????????????????????????????? | | ?????????????????????????????????##### | | ?????????????????????????????????????### #### | | ???????????????????????????????????????#####???## | | ????????????????????????????????????????????????## | | ?????????????????????????????????????????????????? | | ?????????????????????????????????????????????????? | | | | | +----------------------------------------------------+ Best States ------------- Heat Dissipation 42 Energy Generation 16 Energy Capacity 290 Matter Stores 300 Matter Capacity 300 Sight Range 16 Terrain Scan Density 10 Armor Coverage 150 Resistance: EM 15 Evasion (%) 55 Item Schematics ----------------- Beamcaster | -7/Zion | Free Riot Gun | -7/Zion | Free Barrage Gun | -7/Zion | Free Battle Cannon | -7/Zion | Free Flamer | -7/Zion | Free Ripper | -7/Zion | Free Robot Schematics ------------------ None Fabricated ------------ Nothing Alien Tech Used ----------------- None Achievements -------------- None Challenges ------------ None Game ------ Seed TachyonFortressCleaver Manual? 0 Play Time 00:58:54 Cumulative 6.1 hours Start 2021.12.11 @ 15:32:52 End 2021.12.11 @ 16:34:54 Sessions 1 Manual Loads 0 Difficulty Rogue Special Mode None Game No. 8 Rogue 8 Adventurer 0 Explorer 0 Win Type - Total 0 Types 0/0/0/0/0/0/0/0/0 Lore% 10 Gallery% 11 Achievement% 15 Wizard Run 0 Options --------- ASCII 0 Keyboard 0 Movement Vi Keybinds 0 Fullscreen 1 Font 24/Smallcaps Map View 76x50 Tactical HUD 1 Map Filters NONE Filters NONE Steam 1 RUN: 6b400425-c91f-48d7-b71a-bfeb13487d59